[Event "*** Titled Tuesday Blitz"]
[Site "Chess.com"]
[Date "2019.01.01"]
[Round "8"]
[White "gemarin"]
[Black "salomez"]
[Result "1-0"]
[WhiteElo "2087"]
[BlackElo "2140"]
[TimeControl "180+2"]
[EndTime "14:56:30 PST"]
[Termination "gemarin won by resignation"]

1. d4 {[%clk 0:03:01.9]} 1... Nf6 {[%clk 0:03:00.5]} 2. c4 {[%clk 0:03:00.5]}
2... g6 {[%clk 0:03:01.3]} 3. Nc3 {[%clk 0:03:00.9]} 3... d5 {[%clk 0:03:02.5]}
4. Nf3 {[%clk 0:02:55.4]} 4... Bg7 {[%clk 0:03:02.5]} 5. Qb3 {[%clk 0:02:55.8]}
5... dxc4 {[%clk 0:03:02.5]} 6. Qxc4 {[%clk 0:02:56.3]} 6... O-O {[%clk
0:03:03.4]} 7. e4 {[%clk 0:02:56.6]} 7... Bg4 {[%clk 0:03:01.3]} 8. Be2 {[%clk
0:02:55.9]} 8... Nfd7 {[%clk 0:03:00.7]} 9. e5 {[%clk 0:02:48]} 9... Nb6 {[%clk
0:03:00]} 10. Qb3 {[%clk 0:02:39.5]} 10... Nc6 {[%clk 0:02:57.8]} 11. Be3 {[%clk
0:02:24.3]} 11... Bxf3 {[%clk 0:02:58]} 12. Bxf3 {[%clk 0:02:25.1]} 12... Nxd4
{[%clk 0:02:58.7]} 13. Bxd4 {[%clk 0:02:25.5]} 13... Qxd4 {[%clk 0:02:59.2]} 14.
O-O {[%clk 0:02:16.8]} 14... Qxe5 {[%clk 0:02:53.2]} 15. Bxb7 {[%clk 0:02:16.1]}
15... Rab8 {[%clk 0:02:53.5]} 16. Rae1 {[%clk 0:02:15.4]} 16... Qf4 {[%clk
0:02:31.1]} 17. Ba6 {[%clk 0:02:11.7]} 17... e6 {[%clk 0:02:24.6]} 18. g3 {[%clk
0:02:09.2]} 18... Qf3 {[%clk 0:02:19.2]} 19. Re3 {[%clk 0:02:08.3]} 19... Qc6
{[%clk 0:01:58.3]} 20. Bb5 {[%clk 0:02:06.8]} 20... Qc5 {[%clk 0:01:55.7]} 21.
Ne4 {[%clk 0:02:00.4]} 21... Qe7 {[%clk 0:01:56.1]} 22. Qc2 {[%clk 0:01:52]}
22... Nd5 {[%clk 0:01:37.4]} 23. Rb3 {[%clk 0:01:50.7]} 23... Nb4 {[%clk
0:01:37.6]} 24. Qc4 {[%clk 0:01:41]} 24... Nd5 {[%clk 0:01:32.6]} 25. Rc1 {[%clk
0:01:36.9]} 25... Rfd8 {[%clk 0:00:55.2]} 26. Nc5 {[%clk 0:01:28.9]} 26... Bh6
{[%clk 0:00:52.2]} 27. Re1 {[%clk 0:01:20.9]} 27... Nb6 {[%clk 0:00:50.9]} 28.
Qc2 {[%clk 0:01:08.7]} 28... Rd2 {[%clk 0:00:47.4]} 29. Qc3 {[%clk 0:01:09.2]}
29... Nd5 {[%clk 0:00:45.2]} 30. Qc4 {[%clk 0:01:09.9]} 30... Rd8 {[%clk
0:00:28.5]} 31. Ne4 {[%clk 0:01:02.7]} 31... Nb6 {[%clk 0:00:28]} 32. Qc3 {[%clk
0:01:02.5]} 32... R2d4 {[%clk 0:00:25.7]} 33. Bf1 {[%clk 0:00:56.9]} 33... Bg7
{[%clk 0:00:26.3]} 34. Qa5 {[%clk 0:00:53.6]} 34... Rd1 {[%clk 0:00:24.5]} 35.
Rbe3 {[%clk 0:00:48.9]} 35... h5 {[%clk 0:00:23.4]} 36. b3 {[%clk 0:00:46]}
36... Rxe1 {[%clk 0:00:22.3]} 37. Rxe1 {[%clk 0:00:46.4]} 37... Bd4 {[%clk
0:00:21.2]} 38. h4 {[%clk 0:00:42.5]} 38... c5 {[%clk 0:00:17.4]} 39. Kg2 {[%clk
0:00:36.7]} 39... e5 {[%clk 0:00:17.3]} 40. Qa6 {[%clk 0:00:31.5]} 40... Qd7
{[%clk 0:00:15.6]} 41. Bb5 {[%clk 0:00:30]} 41... Qd5 {[%clk 0:00:15.9]} 42. f3
{[%clk 0:00:29.3]} 42... f5 {[%clk 0:00:15]} 43. Ng5 {[%clk 0:00:29.5]} 43...
Bc3 {[%clk 0:00:15.4]} 44. Re2 {[%clk 0:00:29.5]} 44... Bd4 {[%clk 0:00:14.4]}
45. Qxa7 {[%clk 0:00:29.7]} 45... Nd7 {[%clk 0:00:11.6]} 46. Bc4 {[%clk
0:00:30.2]} 46... Qxc4 {[%clk 0:00:07.1]} 47. bxc4 {[%clk 0:00:31.2]} 1-0

[Event "*** Titled Tuesday Blitz"]
[Site "Chess.com"]
[Date "2019.01.01"]
[Round "8"]
[White "SanchezKelvin"]
[Black "Kirill_Klukin"]
[Result "0-1"]
[WhiteElo "2537"]
[BlackElo "2607"]
[TimeControl "180+2"]
[EndTime "14:56:33 PST"]
[Termination "Kirill_Klukin won by checkmate"]

1. Nf3 {[%clk 0:03:01.9]} 1... Nf6 {[%clk 0:02:59.4]} 2. d4 {[%clk 0:03:02.2]}
2... g6 {[%clk 0:03:00.6]} 3. c4 {[%clk 0:03:02.7]} 3... Bg7 {[%clk 0:03:01.6]}
4. Nc3 {[%clk 0:03:04.3]} 4... O-O {[%clk 0:03:02.1]} 5. e4 {[%clk 0:03:05.1]}
5... d6 {[%clk 0:03:03.4]} 6. Be2 {[%clk 0:03:05.5]} 6... Na6 {[%clk 0:03:04.4]}
7. O-O {[%clk 0:03:06.1]} 7... e5 {[%clk 0:03:05.3]} 8. h3 {[%clk 0:02:57.7]}
8... exd4 {[%clk 0:03:01.5]} 9. Nxd4 {[%clk 0:02:57.7]} 9... Nc5 {[%clk
0:03:03.4]} 10. Bf3 {[%clk 0:02:58.6]} 10... Re8 {[%clk 0:03:03.6]} 11. Re1
{[%clk 0:02:59.5]} 11... c6 {[%clk 0:03:04.6]} 12. b4 {[%clk 0:02:56.7]} 12...
Ne6 {[%clk 0:03:04.9]} 13. Be3 {[%clk 0:02:52.2]} 13... Nxd4 {[%clk 0:03:05.3]}
14. Bxd4 {[%clk 0:02:52.9]} 14... Be6 {[%clk 0:03:07.2]} 15. Qd3 {[%clk
0:02:40.5]} 15... Qc7 {[%clk 0:02:33.8]} 16. e5 {[%clk 0:02:28.8]} 16... dxe5
{[%clk 0:02:26.6]} 17. Bxe5 {[%clk 0:02:29.8]} 17... Rad8 {[%clk 0:02:26.9]} 18.
Qc2 {[%clk 0:02:21.1]} 18... Qb6 {[%clk 0:02:18]} 19. Rab1 {[%clk 0:01:38.5]}
19... Bf5 {[%clk 0:02:13.8]} 20. Qb3 {[%clk 0:01:15.3]} 20... Bxb1 {[%clk
0:02:09.8]} 21. Qxb1 {[%clk 0:01:14.2]} 21... Nd7 {[%clk 0:01:49.6]} 22. c5
{[%clk 0:01:08.9]} 22... Qa6 {[%clk 0:01:49]} 23. Bxg7 {[%clk 0:01:09.7]} 23...
Kxg7 {[%clk 0:01:45.2]} 24. Rxe8 {[%clk 0:01:08.4]} 24... Rxe8 {[%clk 0:01:46]}
25. Ne4 {[%clk 0:01:10]} 25... Ne5 {[%clk 0:01:29.1]} 26. Qb2 {[%clk 0:01:10.7]}
26... f6 {[%clk 0:01:30.3]} 27. Be2 {[%clk 0:01:11.6]} 27... b5 {[%clk 0:01:17]}
28. Nd6 {[%clk 0:01:01.6]} 28... Re7 {[%clk 0:01:15.2]} 29. Bf1 {[%clk
0:00:45.9]} 29... Qa4 {[%clk 0:01:08.9]} 30. Qd2 {[%clk 0:00:43.9]} 30... Qa3
{[%clk 0:00:37.3]} 31. Nc8 {[%clk 0:00:35.5]} 31... Rd7 {[%clk 0:00:38.3]} 32.
Nd6 {[%clk 0:00:36.3]} 32... Re7 {[%clk 0:00:22.2]} 33. Nc8 {[%clk 0:00:31.9]}
33... Rd7 {[%clk 0:00:19.9]} 34. Nd6 {[%clk 0:00:33.1]} 34... Re7 {[%clk
0:00:12.2]} 35. Nc8 {[%clk 0:00:20.7]} 35... Rd7 {[%clk 0:00:11.9]} 36. Nd6
{[%clk 0:00:21.7]} 36... Re7 {[%clk 0:00:12.3]} 37. f4 {[%clk 0:00:22.8]} 37...
Nc4 {[%clk 0:00:12.7]} 38. Bxc4 {[%clk 0:00:23]} 38... bxc4 {[%clk 0:00:13.3]}
39. Nxc4 {[%clk 0:00:24.4]} 39... Qa6 {[%clk 0:00:12.4]} 40. Na5 {[%clk
0:00:22.5]} 40... Qb5 {[%clk 0:00:08.5]} 41. Qd6 {[%clk 0:00:22.9]} 41... Re1+
{[%clk 0:00:09.4]} 42. Kh2 {[%clk 0:00:24.2]} 42... Qf1 {[%clk 0:00:10.7]} 43.
f5 {[%clk 0:00:15.6]} 43... Qg1+ {[%clk 0:00:11]} 44. Kg3 {[%clk 0:00:16.8]}
44... Re3+ {[%clk 0:00:12.2]} 45. Kf4 {[%clk 0:00:17.6]} 45... Qf2+ {[%clk
0:00:13.1]} 46. Kg4 {[%clk 0:00:18.6]} 46... Qxf5+ {[%clk 0:00:14]} 47. Kh4
{[%clk 0:00:19.3]} 47... Qh5# {[%clk 0:00:15.2]} 0-1

[Event "*** Titled Tuesday Blitz"]
[Site "Chess.com"]
[Date "2019.01.01"]
[Round "8"]
[White "FelixBlohberger"]
[Black "florianschwabeneder"]
[Result "1-0"]
[WhiteElo "2583"]
[BlackElo "2455"]
[TimeControl "180+2"]
[EndTime "14:56:36 PST"]
[Termination "FelixBlohberger won by resignation"]

1. e4 {[%clk 0:03:01.9]} 1... e5 {[%clk 0:02:55.6]} 2. Nf3 {[%clk 0:02:57.5]}
2... Nc6 {[%clk 0:02:56.3]} 3. Bb5 {[%clk 0:02:56.3]} 3... a6 {[%clk 0:02:54.6]}
4. Ba4 {[%clk 0:02:57.1]} 4... Nf6 {[%clk 0:02:50.2]} 5. O-O {[%clk 0:02:56.8]}
5... d6 {[%clk 0:02:42.4]} 6. d4 {[%clk 0:02:51.4]} 6... exd4 {[%clk 0:02:40.2]}
7. Nxd4 {[%clk 0:02:49.3]} 7... Bd7 {[%clk 0:02:41.3]} 8. Nc3 {[%clk 0:02:48.9]}
8... Be7 {[%clk 0:02:41.6]} 9. Bxc6 {[%clk 0:02:34]} 9... bxc6 {[%clk
0:02:42.1]} 10. b3 {[%clk 0:02:34.9]} 10... c5 {[%clk 0:02:38.9]} 11. Nf5 {[%clk
0:02:28.7]} 11... Bxf5 {[%clk 0:02:34]} 12. exf5 {[%clk 0:02:30.6]} 12... O-O
{[%clk 0:02:27]} 13. Bb2 {[%clk 0:02:29.9]} 13... Qd7 {[%clk 0:02:23.2]} 14. Qf3
{[%clk 0:02:28.8]} 14... d5 {[%clk 0:02:16.8]} 15. Rad1 {[%clk 0:02:24.6]} 15...
c6 {[%clk 0:02:15.1]} 16. Ne2 {[%clk 0:02:19.9]} 16... Qc7 {[%clk 0:02:06.6]}
17. Ng3 {[%clk 0:02:14.1]} 17... Rfe8 {[%clk 0:01:35.3]} 18. Bxf6 {[%clk
0:01:58.6]} 18... Bxf6 {[%clk 0:01:35.6]} 19. c4 {[%clk 0:02:00]} 19... dxc4
{[%clk 0:01:30.6]} 20. bxc4 {[%clk 0:02:00]} 20... Bd4 {[%clk 0:01:31.4]} 21.
Ne2 {[%clk 0:01:58.3]} 21... Rad8 {[%clk 0:01:30.2]} 22. g3 {[%clk 0:01:54.5]}
22... a5 {[%clk 0:01:23.8]} 23. Rd3 {[%clk 0:01:50]} 23... Qe5 {[%clk
0:01:17.1]} 24. Nxd4 {[%clk 0:01:34.1]} 24... cxd4 {[%clk 0:01:18.2]} 25. Qxc6
{[%clk 0:01:32.6]} 25... Qxf5 {[%clk 0:01:12.7]} 26. Rxd4 {[%clk 0:01:31.9]}
26... Rc8 {[%clk 0:01:02.1]} 27. Qb5 {[%clk 0:01:15]} 27... Qf6 {[%clk
0:00:52.3]} 28. Rf4 {[%clk 0:01:15.3]} 28... Qc3 {[%clk 0:00:51]} 29. Qb7 {[%clk
0:01:09]} 29... f6 {[%clk 0:00:38.9]} 30. Rg4 {[%clk 0:01:02]} 30... f5 {[%clk
0:00:36.6]} 31. Rf4 {[%clk 0:01:00.6]} 31... Qe5 {[%clk 0:00:32.8]} 32. h4
{[%clk 0:00:57.2]} 32... Rc7 {[%clk 0:00:31.5]} 33. Qf3 {[%clk 0:00:53.3]} 33...
g6 {[%clk 0:00:30.4]} 34. Kg2 {[%clk 0:00:50.6]} 34... Rec8 {[%clk 0:00:30.8]}
35. Rc1 {[%clk 0:00:37]} 35... Kg7 {[%clk 0:00:30.8]} 36. Rc2 {[%clk 0:00:37.6]}
36... Rc5 {[%clk 0:00:27.4]} 37. Re2 {[%clk 0:00:38]} 37... Qf6 {[%clk
0:00:26.5]} 38. Rc2 {[%clk 0:00:26.4]} 38... R8c7 {[%clk 0:00:26.9]} 39. Qd3
{[%clk 0:00:25.5]} 39... Qc6+ {[%clk 0:00:23.8]} 40. Kh2 {[%clk 0:00:24.5]}
40... Qe6 {[%clk 0:00:20.7]} 41. Qd4+ {[%clk 0:00:25.3]} 41... Qf6 {[%clk
0:00:21.8]} 42. Qd3 {[%clk 0:00:22.2]} 42... Qe6 {[%clk 0:00:21.4]} 43. Re2
{[%clk 0:00:23.3]} 43... Qf6 {[%clk 0:00:21.9]} 44. Re8 {[%clk 0:00:20.5]} 44...
R5c6 {[%clk 0:00:11.2]} 45. Rd4 {[%clk 0:00:20.4]} 45... Re7 {[%clk 0:00:07.9]}
46. Rxe7+ {[%clk 0:00:20.8]} 46... Qxe7 {[%clk 0:00:09.8]} 47. Rd7 {[%clk
0:00:22.2]} 1-0

[Event "*** Titled Tuesday Blitz"]
[Site "Chess.com"]
[Date "2019.01.01"]
[Round "8"]
[White "IakovUlivar"]
[Black "andrzej"]
[Result "1/2-1/2"]
[WhiteElo "2491"]
[BlackElo "2275"]
[TimeControl "180+2"]
[EndTime "14:56:38 PST"]
[Termination "Game drawn by agreement"]

1. d4 {[%clk 0:03:01.9]} 1... Nf6 {[%clk 0:02:56.4]} 2. Nf3 {[%clk 0:03:02.7]}
2... b6 {[%clk 0:02:56.9]} 3. c4 {[%clk 0:02:58.6]} 3... e6 {[%clk 0:02:57.2]}
4. a3 {[%clk 0:02:58.9]} 4... Bb7 {[%clk 0:02:57.8]} 5. Nc3 {[%clk 0:02:59.7]}
5... d5 {[%clk 0:02:59.1]} 6. Qa4+ {[%clk 0:02:59.9]} 6... Qd7 {[%clk
0:02:50.5]} 7. Qc2 {[%clk 0:02:47.3]} 7... dxc4 {[%clk 0:02:40]} 8. Bg5 {[%clk
0:02:38.5]} 8... Be7 {[%clk 0:02:16.6]} 9. e3 {[%clk 0:02:39]} 9... Bxf3 {[%clk
0:02:03.1]} 10. gxf3 {[%clk 0:02:36]} 10... b5 {[%clk 0:02:03.8]} 11. f4 {[%clk
0:02:09.9]} 11... c6 {[%clk 0:01:37.8]} 12. Bg2 {[%clk 0:02:02.5]} 12... a6
{[%clk 0:01:25.2]} 13. a4 {[%clk 0:01:52.4]} 13... Ra7 {[%clk 0:01:23.8]} 14.
O-O {[%clk 0:00:56.9]} 14... O-O {[%clk 0:01:24.8]} 15. Bxf6 {[%clk 0:00:39.4]}
15... Bxf6 {[%clk 0:01:25.7]} 16. Ne4 {[%clk 0:00:37]} 16... Be7 {[%clk
0:01:27]} 17. b3 {[%clk 0:00:37.5]} 17... cxb3 {[%clk 0:01:24.4]} 18. Qxb3
{[%clk 0:00:39.4]} 18... Rc8 {[%clk 0:01:11.7]} 19. Rfc1 {[%clk 0:00:39.4]}
19... Rac7 {[%clk 0:01:06]} 20. Rab1 {[%clk 0:00:32.8]} 20... Kf8 {[%clk
0:00:57.5]} 21. Rc2 {[%clk 0:00:28.9]} 21... Qd5 {[%clk 0:00:56.1]} 22. Qd3
{[%clk 0:00:22.7]} 22... Qf5 {[%clk 0:00:52.5]} 23. Rbc1 {[%clk 0:00:19]} 23...
h6 {[%clk 0:00:40.6]} 24. Qb3 {[%clk 0:00:18.1]} 24... Nd7 {[%clk 0:00:30.8]}
25. axb5 {[%clk 0:00:14]} 25... Qxb5 {[%clk 0:00:27]} 26. Qa2 {[%clk 0:00:11.9]}
26... c5 {[%clk 0:00:19.3]} 27. dxc5 {[%clk 0:00:12.4]} 27... Nxc5 {[%clk
0:00:20.2]} 28. Nxc5 {[%clk 0:00:09.3]} 28... Rxc5 {[%clk 0:00:20.9]} 29. Rxc5
{[%clk 0:00:09.2]} 29... Rxc5 {[%clk 0:00:22.2]} 30. Rb1 {[%clk 0:00:07.7]}
30... Qd7 {[%clk 0:00:16.5]} 31. Qxa6 {[%clk 0:00:06.1]} 31... Qc8 {[%clk
0:00:15]} 32. Qxc8+ {[%clk 0:00:05.2]} 32... Rxc8 {[%clk 0:00:16.2]} 33. Bf3
{[%clk 0:00:05.9]} 33... g6 {[%clk 0:00:16.3]} 34. Rb2 {[%clk 0:00:06.6]} 34...
Rc7 {[%clk 0:00:17.4]} 35. Kg2 {[%clk 0:00:07.3]} 35... h5 {[%clk 0:00:18.4]}
36. Ra2 {[%clk 0:00:07.4]} 36... Kg7 {[%clk 0:00:19.9]} 37. Rb2 {[%clk
0:00:08.1]} 37... Bf6 {[%clk 0:00:21]} 38. Ra2 {[%clk 0:00:08.2]} 38... Be7
{[%clk 0:00:21.6]} 39. Be4 {[%clk 0:00:08.8]} 39... Bd6 {[%clk 0:00:20.8]} 40.
Rc2 {[%clk 0:00:08.2]} 40... Rxc2 {[%clk 0:00:19.9]} 41. Bxc2 {[%clk 0:00:10.1]}
41... Kf6 {[%clk 0:00:20.8]} 42. Kf3 {[%clk 0:00:10.2]} 42... e5 {[%clk
0:00:21.9]} 43. fxe5+ {[%clk 0:00:10.2]} 43... Bxe5 {[%clk 0:00:23.2]} 44. h3
{[%clk 0:00:12.1]} 44... Bc3 {[%clk 0:00:24.2]} 45. Kg2 {[%clk 0:00:11.1]} 45...
g5 {[%clk 0:00:24.6]} 46. f4 {[%clk 0:00:11.8]} 46... gxf4 {[%clk 0:00:24.2]}
47. exf4 {[%clk 0:00:13.7]} 47... Bd2 {[%clk 0:00:25.3]} 48. Kf3 {[%clk
0:00:14.4]} 48... Bc1 {[%clk 0:00:26.8]} 49. Be4 {[%clk 0:00:13.7]} 1/2-1/2

[Event "*** Titled Tuesday Blitz"]
[Site "Chess.com"]
[Date "2019.01.01"]
[Round "8"]
[White "Kacparov"]
[Black "Bryakin_Mikhail"]
[Result "1-0"]
[WhiteElo "2780"]
[BlackElo "2690"]
[TimeControl "180+2"]
[EndTime "14:56:39 PST"]
[Termination "Kacparov won by resignation"]

1. e4 {[%clk 0:02:56]} 1... c5 {[%clk 0:02:57.4]} 2. Nf3 {[%clk 0:02:56.4]} 2...
Nc6 {[%clk 0:02:53.4]} 3. Nc3 {[%clk 0:02:56.6]} 3... e5 {[%clk 0:02:51.6]} 4.
Bc4 {[%clk 0:02:57.3]} 4... d6 {[%clk 0:02:48]} 5. d3 {[%clk 0:02:58]} 5... Be6
{[%clk 0:02:47.3]} 6. O-O {[%clk 0:02:54.7]} 6... Be7 {[%clk 0:02:47.3]} 7. Nd5
{[%clk 0:02:52.1]} 7... h6 {[%clk 0:02:34.1]} 8. a4 {[%clk 0:02:51.9]} 8... Nf6
{[%clk 0:02:25.6]} 9. c3 {[%clk 0:02:49.6]} 9... O-O {[%clk 0:02:18.2]} 10. Be3
{[%clk 0:02:46.4]} 10... Kh7 {[%clk 0:02:01]} 11. h3 {[%clk 0:02:45.2]} 11...
Qd7 {[%clk 0:01:53.3]} 12. Nd2 {[%clk 0:02:45]} 12... Ne8 {[%clk 0:01:48.9]} 13.
f4 {[%clk 0:02:44.1]} 13... f5 {[%clk 0:01:47.8]} 14. Bb5 {[%clk 0:02:33.9]}
14... exf4 {[%clk 0:01:34.4]} 15. Bxf4 {[%clk 0:02:22.4]} 15... a6 {[%clk
0:01:28.8]} 16. Bxc6 {[%clk 0:02:17.9]} 16... bxc6 {[%clk 0:01:30.7]} 17. Nb6
{[%clk 0:02:18.1]} 17... Qb7 {[%clk 0:01:22.6]} 18. Nxa8 {[%clk 0:02:19.2]}
18... Qxa8 {[%clk 0:01:24.5]} 19. Qe2 {[%clk 0:02:15.8]} 19... Qd8 {[%clk
0:01:09.8]} 20. Rae1 {[%clk 0:02:06.2]} 20... Rf7 {[%clk 0:01:02.2]} 21. exf5
{[%clk 0:02:02.7]} 21... Bxf5 {[%clk 0:00:58.1]} 22. Ne4 {[%clk 0:02:03.9]}
22... Bg6 {[%clk 0:00:49.5]} 23. Bg3 {[%clk 0:02:01.9]} 23... Rxf1+ {[%clk
0:00:49.1]} 24. Rxf1 {[%clk 0:02:03.8]} 24... d5 {[%clk 0:00:49.7]} 25. Nd2
{[%clk 0:02:02.9]} 25... Nf6 {[%clk 0:00:47.1]} 26. Nf3 {[%clk 0:02:02.1]} 26...
Bh5 {[%clk 0:00:40.3]} 27. Be5 {[%clk 0:02:00.4]} 27... Qd7 {[%clk 0:00:36.9]}
28. Qe3 {[%clk 0:02:00.7]} 28... Ne8 {[%clk 0:00:22.1]} 29. Bh2 {[%clk
0:01:57.8]} 29... Nd6 {[%clk 0:00:19.5]} 30. Ne5 {[%clk 0:01:58.2]} 30... Qe6
{[%clk 0:00:20.7]} 31. Nc4 {[%clk 0:01:36.4]} 31... Qxe3+ {[%clk 0:00:12.4]} 32.
Nxe3 {[%clk 0:01:37.3]} 32... Bg6 {[%clk 0:00:09.9]} 33. Rd1 {[%clk 0:01:28.1]}
33... Nb7 {[%clk 0:00:10.8]} 34. Ng4 {[%clk 0:01:25.9]} 34... Na5 {[%clk
0:00:08.1]} 35. Ne5 {[%clk 0:01:25.7]} 35... Be8 {[%clk 0:00:09.5]} 36. Bf4
{[%clk 0:01:21.7]} 36... Nb3 {[%clk 0:00:09.8]} 37. Re1 {[%clk 0:01:18]} 37...
Bh4 {[%clk 0:00:09.8]} 38. g3 {[%clk 0:01:19]} 38... Bd8 {[%clk 0:00:11.2]} 39.
Nf3 {[%clk 0:01:09.6]} 39... Bf7 {[%clk 0:00:10.3]} 40. Nd2 {[%clk 0:01:08.2]}
40... Na5 {[%clk 0:00:07.9]} 41. b4 {[%clk 0:01:07.1]} 41... cxb4 {[%clk
0:00:08.4]} 42. cxb4 {[%clk 0:01:09]} 42... Nb7 {[%clk 0:00:09.6]} 43. Nf3
{[%clk 0:01:08.2]} 43... a5 {[%clk 0:00:06.1]} 44. bxa5 {[%clk 0:01:08]} 44...
Bxa5 {[%clk 0:00:06.7]} 45. Rc1 {[%clk 0:01:07.7]} 45... c5 {[%clk 0:00:07.2]}
46. Bd2 {[%clk 0:01:02.4]} 46... c4 {[%clk 0:00:07.1]} 47. Bxa5 {[%clk
0:01:02.5]} 47... Nxa5 {[%clk 0:00:09]} 48. dxc4 {[%clk 0:01:03.5]} 48... dxc4
{[%clk 0:00:10.9]} 49. Nd4 {[%clk 0:01:03.1]} 49... Bd5 {[%clk 0:00:12]} 50. Kf2
{[%clk 0:01:02.8]} 50... Kg6 {[%clk 0:00:12.8]} 51. Ke3 {[%clk 0:01:04]} 51...
Kf6 {[%clk 0:00:14.3]} 52. Rb1 {[%clk 0:01:03.5]} 52... Ke5 {[%clk 0:00:10.7]}
53. Rb5 {[%clk 0:01:01]} 53... Nb7 {[%clk 0:00:11.8]} 54. Nc6+ {[%clk
0:00:57.5]} 54... Kd6 {[%clk 0:00:12.7]} 55. Rxb7 {[%clk 0:00:52.7]} 55... Bxc6
{[%clk 0:00:13]} 56. Rxg7 {[%clk 0:00:53.8]} 56... Bxa4 {[%clk 0:00:14]} 57. Kd4
{[%clk 0:00:53.3]} 57... Bd7 {[%clk 0:00:12.1]} 58. Rg6+ {[%clk 0:00:54.2]}
58... Be6 {[%clk 0:00:12.4]} 59. Rxh6 {[%clk 0:00:55.5]} 59... Ke7 {[%clk
0:00:14.2]} 60. Rxe6+ {[%clk 0:00:54.4]} 60... Kxe6 {[%clk 0:00:15.5]} 61. Kxc4
{[%clk 0:00:55.7]} 1-0

[Event "*** Titled Tuesday Blitz"]
[Site "Chess.com"]
[Date "2019.01.01"]
[Round "8"]
[White "2nd_life"]
[Black "nihalsarin"]
[Result "1-0"]
[WhiteElo "2450"]
[BlackElo "2943"]
[TimeControl "180+2"]
[EndTime "14:56:48 PST"]
[Termination "2nd_life won by resignation"]

1. e4 {[%clk 0:03:01.9]} 1... e5 {[%clk 0:02:59.2]} 2. f4 {[%clk 0:03:00.4]}
2... d5 {[%clk 0:02:57.7]} 3. exd5 {[%clk 0:03:01.1]} 3... e4 {[%clk 0:02:59.6]}
4. d3 {[%clk 0:02:59.7]} 4... Nf6 {[%clk 0:02:55.7]} 5. dxe4 {[%clk 0:03:00]}
5... Nxe4 {[%clk 0:02:57.6]} 6. Nf3 {[%clk 0:03:01.1]} 6... Bc5 {[%clk 0:02:58]}
7. Qe2 {[%clk 0:02:58.3]} 7... Bf2+ {[%clk 0:02:23.3]} 8. Kd1 {[%clk 0:02:56.3]}
8... Qxd5+ {[%clk 0:02:24.7]} 9. Nbd2 {[%clk 0:02:44.3]} 9... Bf5 {[%clk
0:02:24.9]} 10. Qb5+ {[%clk 0:02:35]} 10... Qxb5 {[%clk 0:01:47.3]} 11. Bxb5+
{[%clk 0:02:35.2]} 11... c6 {[%clk 0:01:49.2]} 12. Bd3 {[%clk 0:02:35.8]} 12...
Nxd2 {[%clk 0:01:50.8]} 13. Kxd2 {[%clk 0:01:50.9]} 13... Bxd3 {[%clk
0:01:50.5]} 14. Kxd3 {[%clk 0:01:52.3]} 14... Na6 {[%clk 0:01:49.7]} 15. Bd2
{[%clk 0:01:28.8]} 15... O-O-O+ {[%clk 0:01:44.8]} 16. Ke2 {[%clk 0:01:27.2]}
16... Bb6 {[%clk 0:01:46.2]} 17. Rhe1 {[%clk 0:01:19.3]} 17... Rhe8+ {[%clk
0:01:35.2]} 18. Kf1 {[%clk 0:01:18.5]} 18... Nc5 {[%clk 0:01:37.1]} 19. Rxe8
{[%clk 0:01:17.2]} 19... Rxe8 {[%clk 0:01:38.2]} 20. Re1 {[%clk 0:01:18.2]}
20... Ne4 {[%clk 0:01:15.9]} 21. Be3 {[%clk 0:01:01.1]} 21... f6 {[%clk
0:00:36]} 22. Bxb6 {[%clk 0:00:59.4]} 22... axb6 {[%clk 0:00:37.9]} 23. Rd1
{[%clk 0:00:50.4]} 23... Kc7 {[%clk 0:00:38.4]} 24. a4 {[%clk 0:00:45.3]} 24...
Nd6 {[%clk 0:00:37.7]} 25. b3 {[%clk 0:00:43.6]} 25... Nf5 {[%clk 0:00:38.8]}
26. Kf2 {[%clk 0:00:41.4]} 26... Ne3 {[%clk 0:00:37.7]} 27. Re1 {[%clk 0:00:35]}
27... Ng4+ {[%clk 0:00:38.4]} 28. Kg3 {[%clk 0:00:35.5]} 28... Rxe1 {[%clk
0:00:34.3]} 29. Nxe1 {[%clk 0:00:37.4]} 29... Ne3 {[%clk 0:00:35.8]} 30. Kf3
{[%clk 0:00:38]} 30... Nd5 {[%clk 0:00:36.7]} 31. Ke4 {[%clk 0:00:32.8]} 31...
Kd6 {[%clk 0:00:37.4]} 32. g4 {[%clk 0:00:31.8]} 32... Nc3+ {[%clk 0:00:36]} 33.
Kd3 {[%clk 0:00:19.3]} 33... Nd5 {[%clk 0:00:37.2]} 34. Ke4 {[%clk 0:00:20.4]}
34... g6 {[%clk 0:00:34.4]} 35. h4 {[%clk 0:00:18.7]} 35... Ke6 {[%clk
0:00:34.8]} 36. f5+ {[%clk 0:00:19.1]} 36... gxf5+ {[%clk 0:00:36.3]} 37. gxf5+
{[%clk 0:00:21]} 37... Kd6 {[%clk 0:00:38]} 38. Nf3 {[%clk 0:00:18.7]} 38... Nb4
{[%clk 0:00:32.6]} 39. c4 {[%clk 0:00:17.3]} 39... Na6 {[%clk 0:00:20.4]} 40.
Nd2 {[%clk 0:00:09.9]} 40... Nc5+ {[%clk 0:00:21.1]} 41. Kd4 {[%clk 0:00:11.3]}
41... Nd7 {[%clk 0:00:22.5]} 42. Ne4+ {[%clk 0:00:10.3]} 42... Ke7 {[%clk
0:00:24.1]} 43. c5 {[%clk 0:00:10.3]} 43... bxc5+ {[%clk 0:00:15.5]} 44. Nxc5
{[%clk 0:00:11.5]} 44... Nxc5 {[%clk 0:00:14]} 45. Kxc5 {[%clk 0:00:12.6]} 45...
Kd7 {[%clk 0:00:15.9]} 46. Kb6 {[%clk 0:00:13.9]} 46... Kc8 {[%clk 0:00:16.9]}
47. h5 {[%clk 0:00:15]} 47... Kb8 {[%clk 0:00:17.6]} 48. h6 {[%clk 0:00:16.2]}
48... Kc8 {[%clk 0:00:17.9]} 49. a5 {[%clk 0:00:16.7]} 49... Kb8 {[%clk
0:00:19.4]} 50. b4 {[%clk 0:00:17.3]} 50... Kc8 {[%clk 0:00:18.4]} 51. a6 {[%clk
0:00:18.6]} 51... bxa6 {[%clk 0:00:20.3]} 52. Kxc6 {[%clk 0:00:19.9]} 52... Kd8
{[%clk 0:00:19.5]} 53. Kd6 {[%clk 0:00:20.9]} 1-0